Cogmind - Beta 13 @@@ ROGUE MODE // 2024.04.09 @ 16:19:20 Player: DURANDAL Result: Destroyed by G-34 Mercenary with Small Laser Performance ------------- Evolutions (1) 500 Regions Visited (3) 600 Robots Destroyed (36) 180 Value Destroyed (730) 730 Prototype IDs (0) 0 Alien Tech Used (0) 0 Bonus (8) 8 TOTAL SCORE: 2018 Bonus ------- High Alert Combat Kills 8 Cogmind --------- Core Integrity 0/400 Matter 148/300 Energy 265/265 System Corruption 0% Temperature Cool (10) Movement Treading (240) Ox1 Location -9/Materials Parts ------- > --- POWER (1) -------- Improved Ion Engine > --- PROPULSION (4) --- Light Treads > --- UTILITY (2) ------ Large Storage Unit Power Shielding > --- WEAPON (2) ------- Light Assault Rifle Heavy Assault Rifle > --- INVENTORY (15) --- Improved Heat Sink Large Storage Unit Huge Storage Unit Experimental Sensor Array Improved Terrain Scanner Light Assault Rifle Grenade Launcher Grenade Launcher Mining Laser Peak State ------------ > --- POWER ------------ Ion Engine > --- PROPULSION ------- Light Treads Aluminum Leg > --- UTILITY ---------- Large Storage Unit Weapon Shielding > --- WEAPON ----------- Light Assault Rifle Heavy Battle Rifle > --- INVENTORY -------- Combat Airjet Improved Heat Sink Large Storage Unit Huge Storage Unit Experimental Sensor Array Improved Terrain Scanner Power Shielding Light Assault Rifle Light Assault Rifle Light Assault Rifle Light Assault Rifle Light Assault Rifle Grenade Launcher Grenade Launcher Mining Laser [Rating: 13] Favorites ----------- Power Ion Engine Engine Ion Engine Propulsion Light Treads Treads Light Treads Leg Aluminum Leg Utility Large Storage Unit Storage Large Storage Unit Protection Weapon Shielding Weapon Light Assault Rifle Ballistic Gun Light Assault Rifle Launcher Grenade Launcher Special Weapon Mining Laser Build | -11 -10 -10 -9 ------- Run | Yrd Mat Min Mat Slots Evolved 2 | . . . 2 Power . | . . . . Propulsion 2 | . . . 2 Utility . | . . . . Weapon . | . . . . Parts Attached 37 | 6 8 12 11 Power 6 | 2 . 2 2 Engine 6 | 2 . 2 2 Core . | . . . . Reactor . | . . . . Propulsion 8 | 1 1 4 2 Treads 7 | 1 1 3 2 Leg 1 | . . 1 . Wheel . | . . . . Hover . | . . . . Flight . | . . . . Utility 7 | 1 4 1 1 Device . | . . . . Storage 2 | 1 1 . . Processor . | . . . . Hackware . | . . . . Protection 5 | . 3 1 1 Artifact . | . . . . Weapon 16 | 2 3 5 6 Energy Gun . | . . . . Energy Cannon . | . . . . Ballistic Gun 13 | 2 2 4 5 Ballistic Cannon . | . . . . Launcher 2 | . . 1 1 Special Weapon 1 | . 1 . . Impact Weapon . | . . . . Slashing Weapon . | . . . . Piercing Weapon . | . . . . Special Melee Weapon . | . . . . Unidentified Prototypes . | . . . . Parts Lost 22 | . 1 10 11 Power 4 | . . 2 2 Propulsion 7 | . . 4 3 Utility 3 | . 1 1 1 Weapon 8 | . . 3 5 Highest Loss Streak 6 | . 1 6 5 To Critical Strikes . | . . . . Average Slot Usage (%) 91 | . 97 94 52 Engine 12 | . 14 13 3 Treads 20 | . 26 18 6 Leg 2 | . . 4 1 Storage 13 | . 14 14 11 Protection 12 | . 13 13 10 Ballistic Gun 26 | . 26 27 19 Naked Turns . | . . . . Heaviest Build 31 | 14 30 31 31 Greatest Support 40 | 20 40 40 20 Greatest Overweight (x) 10 | . . 1 10 Average Overweight (x) . | . . . 2 Largest Inventory Capacity 15 | 8 15 15 15 Average Capacity 14 | 7 14 15 15 Most Carried 15 | 5 15 15 15 Average Carried 12 | 2 11 13 12 Final Capacity 15 | 8 15 15 15 Final Carried 15 | 3 15 15 9 Class Distribution -------------------- 98% | Mutant Dominant Class ---------------- Mutant | -10/Materials Mutant | -10/Mines Mutant | -9/Materials Resources | -11 -10 -10 -9 ----------- Run | Yrd Mat Min Mat Matter Collected 878 | 231 247 283 117 Remotely . | . . . . Salvage Created 1043 | . 389 184 470 Parts 78 | . 34 13 31 Haulers Intercepted 1 | . 1 . . Recyclers Shooed . | . . . . Parts Field Recycled . | . . . . Retrieved Matter . | . . . . Parts Self-Destructed . | . . . . Prevented . | . . . . Kills | -11 -10 -10 -9 ------- Run | Yrd Mat Min Mat Combat Hostiles Destroyed 40 | . 11 14 15 Guns 40 | . 11 14 15 Classes Destroyed 8 | . 4 2 2 Builder 1 | . 1 . . Hauler 1 | . 1 . . Swarmer 19 | . 6 6 7 Grunt 10 | . 5 . 5 Brawler 1 | . . . 1 Sentry 2 | . . . 2 Demolisher 1 | . . 1 . Assembled 6 | . . 6 . Best Kill Streak 5 | . 4 3 5 Combat Bots Only 5 | . 3 3 5 Max Kills in Single Turn 2 | . 1 2 1 Gunslinging 1 | . . 1 . Exploded . | . . . . Melee . | . . . . Uniques/NPCs Destroyed 1 | . . 1 . YI-UF0 (-10/Mines) Combat | -11 -10 -10 -9 -------- Run | Yrd Mat Min Mat Hostile Shots Fired 302 | . 63 75 164 Missed 71 | . 19 18 34 Damage Taken 3133 | . 447 1274 1412 Core 621 | . 47 169 405 Absorbed by Shields . | . . . . Redirected to Shielding 184 | . 52 84 48 Core Remaining (%) 56 | 100 . 13 . Volleys Fired 166 | . 42 60 64 Largest 2 | . 2 2 2 Hottest 100 | . 100 53 53 Shots Fired 291 | . 75 105 111 Gun 282 | . 66 105 111 Cannon . | . . . . Launcher . | . . . . Special 9 | . 9 . . Kinetic 282 | . 66 105 111 Thermal 9 | . 9 . . Explosive . | . . . . Electromagnetic . | . . . . Robot Hit Streak 13 | . 9 7 13 Robot Miss Streak 4 | . 3 4 4 Penetration Max . | . . . . Secondary Targets 7 | . . 2 5 Max Gunslinging Chain 1 | . . 1 1 Shots Hit Robots 183 | . 45 61 77 Core Hits 77 | . 20 34 23 Critical Kills . | . . . . Critical Parts Destroyed . | . . . . Critical Strikes . | . . . . Melee Attacks . | . . . . Impact . | . . . . Slashing . | . . . . Piercing . | . . . . Sneak Attacks . | . . . . Combat Hostiles . | . . . . Follow-up Attacks . | . . . . Damage Inflicted 2170 | . 576 608 986 Guns 2147 | . 555 608 984 Cannons . | . . . . Explosions . | . . . . Melee . | . . . . Ramming 23 | . 21 . 2 Kinetic 2147 | . 555 608 984 Thermal . | . . . . Explosive . | . . . . Electromagnetic . | . . . . Impact . | . . . . Slashing . | . . . . Piercing . | . . . . Highest Corruption . | . . . . Average Corruption . | . . . . Corruption Purged . | . . . . Corruption Blocked . | . . . . Overload Shots . | . . . . Overflow Damage . | . . . . Projectiles . | . . . . Explosions . | . . . . Melee . | . . . . Knockbacks . | . . . . Impact . | . . . . Kinetic . | . . . . Secondary . | . . . . Self-Inflicted Damage . | . . . . Shots . | . . . . Rammed 6 | . 4 . 2 Targets Rammed 6 | . 4 . 2 Kicked . | . . . . Crushed . | . . . . Highest Temperature 140 | . 140 48 25 Average Temperature 26 | . 50 16 7 Received Heat Transfer 759 | . 141 120 498 Siege Activations . | . . . . Robots Corrupted . | . . . . Combat Hostiles . | . . . . Parts Fried . | . . . . Impact Corruptions . | . . . . Robots Melted . | . . . . Combat Hostiles . | . . . . Parts Melted . | . . . . Heat Transferred . | . . . . Parts Sabotaged . | . . . . Parts Stolen . | . . . . Parts Stripped . | . . . . Power Chain Reactions . | . . . . Alert | -11 -10 -10 -9 ------- Run | Yrd Mat Min Mat Peak Influence 405 | . 198 61 405 Initial . | . . . . Average 52 | . 86 17 151 Maximum Alert Level 2 | . . . 2 Low Security (%) 96 | 100 100 100 67 Level 1 2 | . . . 29 Level 2 . | . . . 3 Level 3 . | . . . . Level 4 . | . . . . Level 5 . | . . . . High Security . | . . . . Max Security . | . . . . Squads Dispatched 3 | . 1 . 2 Investigation 1 | . 1 . . Extermination . | . . . . Reinforcement 2 | . . . 2 Assault . | . . . . Garrison . | . . . . Intercept . | . . . . Searches Triggered . | . . . . Construction Impeded . | . . . . Haulers Reinforced . | . . . . Active Scanning Responses . | . . . . Cargo Convoy Interrupts . | . . . . Stealth | -11 -10 -10 -9 --------- Run | Yrd Mat Min Mat Distress Signals 6 | . 2 . 4 Communications Jammed . | . . . . Distress Signals . | . . . . Times Spotted 71 | . 25 17 29 Peak Tracking Total 9 | . 5 3 9 Tactical Retreats 7 | . 1 3 3 Traps | -11 -10 -10 -9 ------- Run | Yrd Mat Min Mat Traps Triggered 1 | . 1 . . Indirectly . | . . . . Trap Hack Attempts . | . . . . Triggered . | . . . . Disarmed . | . . . . Reprogrammed . | . . . . Reused . | . . . . Traps Extracted . | . . . . Installed . | . . . . Triggered . | . . . . Machines | -11 -10 -10 -9 ---------- Run | Yrd Mat Min Mat Machines Disabled . | . . . . Max in Single Turn . | . . . . Machines Repaired . | . . . . Machines Dismantled . | . . . . Machines Sabotaged . | . . . . Overloaded Fab Kills . | . . . . Hacking | -11 -10 -10 -9 --------- Run | Yrd Mat Min Mat Machines Accessed 7 | . 7 . . Terminals 6 | . 6 . . Fabricators . | . . . . Repair Stations . | . . . . Recycling Units 1 | . 1 . . Scanalyzers . | . . . . Garrison Access . | . . . . Total Hacks 15 | . 15 . . Successful 8 | . 8 . . Failed 7 | . 7 . . Catastrophic . | . . . . Database Lockouts . | . . . . Manual 10 | . 10 . . Terminals 14 | . 14 . . Fabricators . | . . . . Repair Stations . | . . . . Recycling Units 1 | . 1 . . Scanalyzers . | . . . . Garrison Access . | . . . . Terminal Hacks 2 | . 2 . . Locate Traps 1 | . 1 . . Hauler Manifests 1 | . 1 . . Fabricator Hacks . | . . . . Repair Station Hacks . | . . . . Recycling Unit Hacks 1 | . 1 . . Report Inventory 1 | . 1 . . Scanalyzer . | . . . . Garrison Access Hacks . | . . . . Unauthorized Hacks 5 | . 5 . . Terminals 5 | . 5 . . Assimilate 5 | . 5 . . Fabricators . | . . . . Repair Stations . | . . . . Recycling Units . | . . . . Scanalyzers . | . . . . Garrison Access . | . . . . Data Cores Recovered . | . . . . Used . | . . . . Hacking Detections 4 | . 4 . . Full Trace Events . | . . . . Feedback Events . | . . . . Feedback Blocked . | . . . . Robot Schematics Acquired . | . . . . Robots Built . | . . . . Authchips . | . . . . Time . | . . . . Total Robot Build Rating . | . . . . Part Schematics Acquired . | . . . . Parts Built . | . . . . Authchips . | . . . . Time . | . . . . Total Part Build Rating . | . . . . Parts Repaired . | . . . . Time . | . . . . Parts Recycled . | . . . . Recycled Matter . | . . . . Retrieved Matter . | . . . . Retrieved Components . | . . . . Parts Scanalyzed . | . . . . Part Schematics Acquired . | . . . . Parts Damaged . | . . . . Bothacking | -11 -10 -10 -9 ------------ Run | Yrd Mat Min Mat Used RIF Installer . | . . . . Robots Hacked . | . . . . Non-combat . | . . . . Combat . | . . . . Robot Hacks Applied . | . . . . Relay Couplers Released . | . . . . Fabnet Peak Effective % . | . . . . Robots Rewired . | . . . . Allies Hacked . | . . . . Hacks Repelled . | . . . . Allies | -11 -10 -10 -9 -------- Run | Yrd Mat Min Mat Total Allies . | . . . . Largest Group . | . . . . Highest-Rated Group . | . . . . Highest-Rated Ally . | . . . . Total Orders . | . . . . Ally Attacks . | . . . . Total Damage . | . . . . Kills . | . . . . Allies Corrupted . | . . . . Allies Melted . | . . . . Intel | -11 -10 -10 -9 ------- Run | Yrd Mat Min Mat Robot Analysis Total . | . . . . Derelict Logs Recovered 2 | . . 2 . Drone Launches . | . . . . Drone Recoveries . | . . . . Exploration | -11 -10 -10 -9 ------------- Run | Yrd Mat Min Mat Turns Passed 3999 | 60 1279 2276 384 Spaces Moved 1780 | 32 672 1012 64 Core 23 | 6 . . 17 Treads 1757 | 26 672 1012 47 Legs . | . . . . Wheels . | . . . . Hover . | . . . . Flight . | . . . . Fastest Speed 50 | 50 160 160 240 Average Speed 189 | 139 160 204 293 Slowest Speed 550 | 160 160 240 550 Overloaded Moves . | . . . . Propulsion Burnouts . | . . . . Robots Hopped . | . . . . Cave-ins Triggered . | . . . . Exploration Rate (%) 49 | 4 86 100 7 Regions Visited 3 Branch Regions 1 Pre-discovered Areas 1 | . . 1 . Known Exits Taken . | . . . . Unknown Exits Taken 3 | 1 1 1 . Scrap Searched 1 | . . 1 . Spaces Dug 6 | . 6 . . Terrain Destroyed 10 | . 8 2 . Melee . | . . . . Projectile 10 | . 8 2 . AOE . | . . . . Terrain Rammed . | . . . . Walls Destroyed . | . . . . Machines Disabled . | . . . . Actions | -11 -10 -10 -9 --------- Run | Yrd Mat Min Mat Total 2109 | 47 780 1126 156 Wait 74 | 2 34 29 9 Move 1777 | 31 671 1011 64 Hop . | . . . . Pick Up 43 | 8 18 12 5 Fast Attach . | . . . . Attach 28 | 5 3 10 10 Detach . | . . . . Swap 9 | 1 5 2 1 Drop 6 | . 3 2 1 Fire 166 | . 42 60 64 Melee . | . . . . Ram 1 | . . . 1 Kick . | . . . . Crush 5 | . 4 . 1 Escape Stasis . | . . . . Rewire . | . . . . Trap . | . . . . Miscellaneous . | . . . . Route ------- -11/Scrapyard -10/Materials (discovered 4 exits: [*Mat x2] / [*Min x2]) -10/Mines (discovered 2 exits: [*Mat x2]) -9/Materials (discovered 1 exit: Min) History --------- Turn | Location | Event 5 | -11/Scrapyard | Discovered new exit (range 16) 61 | -11/Scrapyard | Entered Materials 108 | -10/Materials | Discovered new exit (range 16) 179 | -10/Materials | Discovered new exit (range 16) 311 | -10/Materials | Build established: Mutant 338 | -10/Materials | Discovered new exit (range 13) 357 | -10/Materials | Discovered new exit (range 10) 1340 | -10/Materials | Entered Mines 1341 | -10/Mines | Assembled infested the area 1390 | -10/Mines | Core integrity fell below 50% 1422 | -10/Mines | Lost 6 parts (1p2n1u2w) 1849 | -10/Mines | Found a damaged Exp. Sensor Array with a note attached 1854 | -10/Mines | Found Prototype Device 1965 | -10/Mines | Discovered new exit (range 7) 1975 | -10/Mines | Learned location of 1 exit from Materials 2003 | -10/Mines | A weapon hastily lodged in a ceiling crevice suddenly fell to the ground 2121 | -10/Mines | Learned location of Zion (-6) 2137 | -10/Mines | Found a hidden stash of uninstalled traps 2216 | -10/Mines | Discovered new exit (range 7) 2709 | -10/Mines | Core integrity fell below 20% 2715 | -10/Mines | Destroyed YI-UF0 3616 | -10/Mines | Entered Materials 3616 | -9/Materials | Evolved 2 slots: Propulsion x2 3617 | -9/Materials | Identified exit to Mines 3722 | -9/Materials | Lost 5 parts (1p2n1u1w) 3866 | -9/Materials | Core integrity fell below 50% 3926 | -9/Materials | Lost 3 parts (1p1n1w) 3939 | -9/Materials | Core integrity fell below 20% 4000 | -9/Materials | Destroyed by G-34 Mercenary with Small Laser Last Messages --------------- 03902_ S-10 Pest destroyed. 03903_ K-01 Serf collects debris. 03910_ Acquired Hvy. Assault Rifle. 03910_ K-01 Serf collects debris. 03911_ Acquired 63 matter. 03911_ K-01 Serf collects debris. 03920_ Slammed into K-01 Serf. 03921_ K-01 Serf collects debris. 03934_ Hvy. Assault Rifle destroyed. 03938_ Acquired Imp. Ion Engine. 03943_ Acquired Lgt. Treads. 03951_ Lgt. Assault Rifle destroyed. 03972_ G-34 Mercenary destroyed. 03972_ Switching to secondary target: S-10 Pest. 03978_ S-10 Pest destroyed. 03984_ Switching to secondary target: G-34 Mercenary. 03986_ G-34 Mercenary destroyed. 03989_ A-02 Transporter sends out distress signal. Map ----- +----------------------------------------------------+ | ??????????????????????????????????????????????? | | ???????????????????#??????????????????????????? | | ??????????????????? ??????????????????????????? | | ??????????????????? "?????????????????????????? | | ??????????????????? "?????????????????????????? | | ??????????????????? ?????????????????????????? | | ??????????????????##+####?????????????????????? | | ?????????????????? #????????????????????? | | ????????????????? "" #????????????????????? | | ??????????????????"" """?????????????????????? | | ??????????????????""o S"?????????????????????? | | ???????????????????" = ??????????????????????? | | ??????????????????? ??????????????????????? | | ???????????????????? ???????????????????????? | | ???????????????????? ???????????????????????? | | ????????????????????#/#???????????????????????? | | ????????????????????#a#???????????????????????? | | ????????????????????#*#???????????????????????? | | ????????????????????#=#???????????????????????? | | ????????????????????#%#???????????????????????? | | ??????????????????###%###????????####?????????? | | ??????????????????# =%[ ####### #?????????? | | ??????????????????# *!u #?????????? | | ??????????????????# T ??????????? | | ??????????????????# %![ #?????????? | | ?????????###??????# @=####### #?????????? | | ?????????# ########g##??????? ##?????????? | | ?????????# ===#????????????????????? | | ?????????# %*#????????????????????? | | ?????????# #????????????????????? | | ?????????# ####### #????????????????????? | | ?????????###?????????#% #????????????????????? | | ?????????????????????# #????????????????????? | | ????????????????????##% ##???????????????????? | | ??????###############% #???????????????????? | | ??????# [% #???????????????????? | | ??????# *= #???????????????????? | | ??????# [! #???????????????????? | | ??????## ###+### #???????????????????? | | ???????# ##[% ### ###???????????????????? | | ???????#]]!!!!## #?? #?????????????????????? | | ???????#]]!!!!## #?? #?????????????????????? | | ???????#########! [ #?? #?????????????????????? | | ???????????????# #?? #?????????????????????? | | ???????????????# " +?? ?????????????????????? | | ???????????????# T #??##?????????????????????? | | ???????????????# " #?????????????????????????? | | ???????????????# #?????????????????????????? | | ???????????????######?????????????????????????? | | ??????????????????????????????????????????????? | +----------------------------------------------------+ Best States ------------- Heat Dissipation 28 Energy Generation 12 Energy Capacity 265 Matter Stores 300 Matter Capacity 300 Sight Range 16 Terrain Scan Density 10 Power Shielding 33 Propulsion Shielding 33 Weapon Shielding 33 Evasion (%) 50 Recoil Reduction 2 Item Schematics ----------------- None Robot Schematics ------------------ None Fabricated ------------ Nothing Alien Tech Used ----------------- None Achievements -------------- None Challenges ------------ None Game ------ Seed PlasmaMasterArray Manual? 0 Play Time 00:27:28 Cumulative 16.7 hours Start 2024.04.09 @ 14:02:44 End 2024.04.09 @ 16:19:20 Sessions 3 Manual Loads 0 Difficulty Rogue Special Mode None Game No. 27 Rogue 27 Adventurer 0 Explorer 0 Win Type - Total 0 Types 0/0/0/0/0/0/0/0/0 Lore% 19 Gallery% 16 Achievement% 17 Wizard Run 0 Options --------- Layout 1 ASCII 0 Keyboard 0 Movement Numpad Keybinds 0 Fullscreen 1 Font 24/Smallcaps Map View 50x35 Zoom Use 0% Tactical HUD 1 Map Filters NONE Filters NONE Steam 1 RUN: e37a2038-d2bb-4308-8010-d858b1aa77f0